[Event "Titled Tuesday Blitz November 14 Early 2023"]
[White "Aggelis, Nikolaos"]
[Black "Bryakin, Mikhail"]
[WhiteFideId "4213220"]
[BlackFideId "4165314"]
[WhiteElo "2551"]
[BlackElo "2760"]
[Result "1-0"]
[Round "4"]
[TimeControl "180+1"]
[Date "2023.11.14"]
[WhiteClock "0:00:23"]
[BlackClock "0:00:00"]
[Board "71"]

1. d4 {[%clk 0:03:00]}  Nf6 {[%clk 0:02:58]} 2. g3 {[%clk 0:02:59]}  c5 {[%clk 0:02:57]} 3. d5 {[%clk 0:02:59]}  d6 {[%clk 0:02:55]} 4. Bg2 {[%clk 0:02:59]}  g6 {[%clk 0:02:54]} 5. Nf3 {[%clk 0:02:59]}  Bg7 {[%clk 0:02:55]} 6. Nc3 {[%clk 0:02:59]}  O-O {[%clk 0:02:53]} 7. Nd2 {[%clk 0:02:59]}  a6 {[%clk 0:02:52]} 8. a4 {[%clk 0:02:58]}  b6 {[%clk 0:02:49]} 9. O-O {[%clk 0:02:55]}  Nbd7 {[%clk 0:02:40]} 10. e4 {[%clk 0:02:55]}  Bb7 {[%clk 0:02:35]} 11. Nc4 {[%clk 0:02:55]}  Ne8 {[%clk 0:02:16]} 12. Bf4 {[%clk 0:02:53]}  Nc7 {[%clk 0:02:14]} 13. Re1 {[%clk 0:02:45]}  Ne5 {[%clk 0:02:10]} 14. Bxe5 {[%clk 0:02:36]}  Bxe5 {[%clk 0:02:11]} 15. Nxb6 {[%clk 0:02:35]}  Bxc3 {[%clk 0:02:07]} 16. bxc3 {[%clk 0:02:34]}  Rb8 {[%clk 0:02:07]} 17. a5 {[%clk 0:02:32]}  e5 {[%clk 0:02:00]} 18. dxe6 {[%clk 0:02:29]}  fxe6 {[%clk 0:01:32]} 19. Qd2 {[%clk 0:02:28]}  Qe7 {[%clk 0:01:24]} 20. Rad1 {[%clk 0:02:26]}  Rbd8 {[%clk 0:01:23]} 21. Nc4 {[%clk 0:02:15]}  Nb5 {[%clk 0:01:17]} 22. Qe3 {[%clk 0:02:04]}  Bc6 {[%clk 0:00:58]} 23. Rd2 {[%clk 0:02:03]}  Rfe8 {[%clk 0:00:43]} 24. Nb6 {[%clk 0:01:54]}  Qc7 {[%clk 0:00:37]} 25. Qg5 {[%clk 0:01:50]}  Nxc3 {[%clk 0:00:32]} 26. h4 {[%clk 0:01:48]}  Qe7 {[%clk 0:00:30]} 27. Qe3 {[%clk 0:01:45]}  Nb5 {[%clk 0:00:28]} 28. Red1 {[%clk 0:01:43]}  e5 {[%clk 0:00:28]} 29. c3 {[%clk 0:01:38]}  Kg7 {[%clk 0:00:28]} 30. Bf1 {[%clk 0:01:19]}  Qe6 {[%clk 0:00:27]} 31. Bc4 {[%clk 0:01:18]}  Qf6 {[%clk 0:00:27]} 32. Bd5 {[%clk 0:01:15]}  Bxd5 {[%clk 0:00:25]} 33. Rxd5 {[%clk 0:01:07]}  Nc7 {[%clk 0:00:24]} 34. R5d2 {[%clk 0:01:04]}  Qe6 {[%clk 0:00:24]} 35. Qe2 {[%clk 0:01:03]}  Nb5 {[%clk 0:00:23]} 36. Qd3 {[%clk 0:00:53]}  Qb3 {[%clk 0:00:22]} 37. Nd5 {[%clk 0:00:48]}  Rf8 {[%clk 0:00:20]} 38. Qe3 {[%clk 0:00:46]}  Rd7 {[%clk 0:00:18]} 39. h5 {[%clk 0:00:45]}  Rdf7 {[%clk 0:00:16]} 40. Kg2 {[%clk 0:00:43]}  Qa3 {[%clk 0:00:11]} 41. hxg6 {[%clk 0:00:41]}  hxg6 {[%clk 0:00:11]} 42. Rh1 {[%clk 0:00:42]}  Kg8 {[%clk 0:00:04]} 43. Qh6 {[%clk 0:00:27]}  Rg7 {[%clk 0:00:04]} 44. Rd3 {[%clk 0:00:22]}  Qb2 {[%clk 0:00:04]} 45. Qh8+ {[%clk 0:00:23]}  Kf7 {[%clk 0:00:03]} 46. Rf3+ {[%clk 0:00:23]}  Ke6 {[%clk 0:00:00]} 47. Qxf8 {[%clk 0:00:23]} 1-0


[Site "https://www.chess.com"]

[Event "Titled Tuesday Blitz November 14 Early 2023"]
[White "Alinasab, Mobina"]
[Black "Korchmar, Vasiliy"]
[WhiteFideId "12528897"]
[BlackFideId "24131750"]
[WhiteElo "2548"]
[BlackElo "2755"]
[Result "1/2-1/2"]
[Round "4"]
[TimeControl "180+1"]
[Date "2023.11.14"]
[WhiteClock "0:00:05"]
[BlackClock "0:00:03"]
[Board "73"]

1. e4 {[%clk 0:03:00]}  c5 {[%clk 0:03:00]} 2. Nf3 {[%clk 0:03:00]}  d6 {[%clk 0:03:00]} 3. d4 {[%clk 0:02:56]}  cxd4 {[%clk 0:03:01]} 4. Nxd4 {[%clk 0:02:56]}  Nf6 {[%clk 0:03:02]} 5. Nc3 {[%clk 0:02:57]}  Nc6 {[%clk 0:03:02]} 6. f3 {[%clk 0:02:46]}  e5 {[%clk 0:03:02]} 7. Nb3 {[%clk 0:02:46]}  Be7 {[%clk 0:03:02]} 8. Be3 {[%clk 0:02:46]}  O-O {[%clk 0:03:03]} 9. Qd2 {[%clk 0:02:46]}  Be6 {[%clk 0:03:03]} 10. Nd5 {[%clk 0:02:45]}  a5 {[%clk 0:03:00]} 11. a4 {[%clk 0:02:44]}  Bxd5 {[%clk 0:02:58]} 12. exd5 {[%clk 0:02:44]}  Nb4 {[%clk 0:02:58]} 13. c4 {[%clk 0:02:42]}  e4 {[%clk 0:02:44]} 14. Be2 {[%clk 0:02:41]}  exf3 {[%clk 0:02:35]} 15. Bxf3 {[%clk 0:02:42]}  Nd7 {[%clk 0:02:36]} 16. O-O {[%clk 0:02:36]}  Ne5 {[%clk 0:02:36]} 17. Be2 {[%clk 0:02:35]}  h6 {[%clk 0:02:25]} 18. Nd4 {[%clk 0:02:32]}  Re8 {[%clk 0:02:18]} 19. Nf3 {[%clk 0:02:14]}  Nxf3+ {[%clk 0:02:15]} 20. Bxf3 {[%clk 0:02:07]}  Bf6 {[%clk 0:02:15]} 21. Rac1 {[%clk 0:02:06]}  Bxb2 {[%clk 0:02:13]} 22. Bh5 {[%clk 0:01:20]}  Bxc1 {[%clk 0:02:06]} 23. Bxf7+ {[%clk 0:01:19]}  Kh8 {[%clk 0:02:06]} 24. Qxc1 {[%clk 0:01:14]}  Qh4 {[%clk 0:01:18]} 25. g3 {[%clk 0:00:45]}  Qh3 {[%clk 0:01:09]} 26. Bxe8 {[%clk 0:00:34]}  Rxe8 {[%clk 0:01:10]} 27. Qd2 {[%clk 0:00:34]}  Kg8 {[%clk 0:00:55]} 28. Qf2 {[%clk 0:00:31]}  Qd7 {[%clk 0:00:54]} 29. Bd4 {[%clk 0:00:16]}  Nd3 {[%clk 0:00:50]} 30. Qd2 {[%clk 0:00:15]}  Ne5 {[%clk 0:00:49]} 31. Bxe5 {[%clk 0:00:15]}  Rxe5 {[%clk 0:00:50]} 32. Qxa5 {[%clk 0:00:16]}  Re2 {[%clk 0:00:47]} 33. Qa8+ {[%clk 0:00:11]}  Kh7 {[%clk 0:00:47]} 34. Qf8 {[%clk 0:00:12]}  Rc2 {[%clk 0:00:25]} 35. Rf7 {[%clk 0:00:10]}  Qg4 {[%clk 0:00:25]} 36. Rf1 {[%clk 0:00:05]}  Qd4+ {[%clk 0:00:18]} 37. Kh1 {[%clk 0:00:05]}  Qd3 {[%clk 0:00:07]} 38. Qf5+ {[%clk 0:00:04]}  Qxf5 {[%clk 0:00:08]} 39. Rxf5 {[%clk 0:00:05]}  Rxc4 {[%clk 0:00:08]} 40. Rf7 {[%clk 0:00:04]}  Rxa4 {[%clk 0:00:06]} 41. Rd7 {[%clk 0:00:04]}  Ra5 {[%clk 0:00:07]} 42. Rxd6 {[%clk 0:00:04]}  Rb5 {[%clk 0:00:05]} 43. Rd8 {[%clk 0:00:03]}  Rb2 {[%clk 0:00:06]} 44. d6 {[%clk 0:00:04]}  Kg6 {[%clk 0:00:04]} 45. Rb8 {[%clk 0:00:03]}  Rd2 {[%clk 0:00:03]} 46. Rxb7 {[%clk 0:00:03]}  Rxd6 {[%clk 0:00:04]} 47. Rb2 {[%clk 0:00:03]}  Rd3 {[%clk 0:00:04]} 48. Kg2 {[%clk 0:00:03]}  Kf5 {[%clk 0:00:04]} 49. Rf2+ {[%clk 0:00:04]}  Kg4 {[%clk 0:00:04]} 50. Re2 {[%clk 0:00:05]}  g5 {[%clk 0:00:04]} 51. Re4+ {[%clk 0:00:05]}  Kf5 {[%clk 0:00:04]} 52. Re2 {[%clk 0:00:06]}  g4 {[%clk 0:00:04]} 53. Rf2+ {[%clk 0:00:07]}  Ke4 {[%clk 0:00:04]} 54. Ra2 {[%clk 0:00:08]}  Ke3 {[%clk 0:00:04]} 55. Rb2 {[%clk 0:00:08]}  h5 {[%clk 0:00:03]} 56. Rb5 {[%clk 0:00:06]}  Rd2+ {[%clk 0:00:04]} 57. Kg1 {[%clk 0:00:06]}  h4 {[%clk 0:00:03]} 58. gxh4 {[%clk 0:00:05]}  Kf3 {[%clk 0:00:03]} 59. Rf5+ {[%clk 0:00:04]}  Ke4 {[%clk 0:00:04]} 60. Rg5 {[%clk 0:00:03]}  Kf4 {[%clk 0:00:04]} 61. Rg8 {[%clk 0:00:03]}  Rd1+ {[%clk 0:00:04]} 62. Kg2 {[%clk 0:00:03]}  Rd2+ {[%clk 0:00:05]} 63. Kg1 {[%clk 0:00:03]}  Rd5 {[%clk 0:00:02]} 64. Rf8+ {[%clk 0:00:03]}  Ke3 {[%clk 0:00:02]} 65. Rg8 {[%clk 0:00:04]}  Kf3 {[%clk 0:00:02]} 66. Rf8+ {[%clk 0:00:04]}  Ke4 {[%clk 0:00:03]} 67. Rg8 {[%clk 0:00:04]}  Kf4 {[%clk 0:00:03]} 68. Kg2 {[%clk 0:00:05]}  Rd2+ {[%clk 0:00:03]} 69. Kg1 {[%clk 0:00:05]} 1/2-1/2


[Site "https://www.chess.com"]

[Event "Titled Tuesday Blitz November 14 Early 2023"]
[White "Taboas Rodriguez, Daniel"]
[Black "Hayrapetyan, Hovik"]
[WhiteFideId "2208466"]
[BlackFideId "13302639"]
[WhiteElo "2546"]
[BlackElo "2744"]
[Result "1-0"]
[Round "4"]
[TimeControl "180+1"]
[Date "2023.11.14"]
[WhiteClock "0:01:35"]
[BlackClock "0:00:05"]
[Board "74"]

1. d4 {[%clk 0:02:59]}  Nf6 {[%clk 0:02:59]} 2. Nf3 {[%clk 0:02:59]}  d5 {[%clk 0:02:58]} 3. c4 {[%clk 0:02:59]}  e6 {[%clk 0:02:56]} 4. Nc3 {[%clk 0:02:59]}  Bb4 {[%clk 0:02:52]} 5. e3 {[%clk 0:02:58]}  O-O {[%clk 0:02:39]} 6. a3 {[%clk 0:02:58]}  Bxc3+ {[%clk 0:02:02]} 7. bxc3 {[%clk 0:02:59]}  c5 {[%clk 0:02:02]} 8. Bd3 {[%clk 0:02:58]}  dxc4 {[%clk 0:01:48]} 9. Bxc4 {[%clk 0:02:59]}  Qc7 {[%clk 0:01:47]} 10. Be2 {[%clk 0:02:47]}  b6 {[%clk 0:01:44]} 11. O-O {[%clk 0:02:47]}  Bb7 {[%clk 0:01:42]} 12. a4 {[%clk 0:02:46]}  Nc6 {[%clk 0:01:41]} 13. Ba3 {[%clk 0:02:45]}  Rfd8 {[%clk 0:01:39]} 14. Rc1 {[%clk 0:02:41]}  Rac8 {[%clk 0:01:34]} 15. Qb3 {[%clk 0:02:40]}  Na5 {[%clk 0:01:33]} 16. Qb2 {[%clk 0:02:33]}  Bxf3 {[%clk 0:01:12]} 17. Bxf3 {[%clk 0:02:31]}  Nc4 {[%clk 0:01:09]} 18. Qa2 {[%clk 0:02:31]}  Nxa3 {[%clk 0:01:08]} 19. Qxa3 {[%clk 0:02:31]}  e5 {[%clk 0:01:03]} 20. a5 {[%clk 0:02:25]}  b5 {[%clk 0:00:47]} 21. a6 {[%clk 0:02:25]}  e4 {[%clk 0:00:47]} 22. Be2 {[%clk 0:02:25]}  c4 {[%clk 0:00:48]} 23. Rb1 {[%clk 0:02:24]}  Rb8 {[%clk 0:00:46]} 24. Rb2 {[%clk 0:02:17]}  Rb6 {[%clk 0:00:33]} 25. Rfb1 {[%clk 0:02:17]}  Nd5 {[%clk 0:00:30]} 26. Rxb5 {[%clk 0:02:10]}  Rdb8 {[%clk 0:00:20]} 27. Rxb6 {[%clk 0:01:52]}  Rxb6 {[%clk 0:00:21]} 28. Rxb6 {[%clk 0:01:50]}  Nxb6 {[%clk 0:00:21]} 29. Qc5 {[%clk 0:01:44]}  Qxc5 {[%clk 0:00:12]} 30. dxc5 {[%clk 0:01:45]}  Na4 {[%clk 0:00:12]} 31. c6 {[%clk 0:01:40]}  Nb6 {[%clk 0:00:12]} 32. c7 {[%clk 0:01:38]}  Kf8 {[%clk 0:00:05]} 33. Bg4 {[%clk 0:01:35]} 1-0


[Site "https://www.chess.com"]

[Event "Titled Tuesday Blitz November 14 Early 2023"]
[White "Reprintsev, Alexander"]
[Black "Atakhan, Abtin"]
[WhiteFideId "14100541"]
[BlackFideId "22502203"]
[WhiteElo "2539"]
[BlackElo "2740"]
[Result "1/2-1/2"]
[Round "4"]
[TimeControl "180+1"]
[Date "2023.11.14"]
[WhiteClock "0:01:39"]
[BlackClock "0:00:15"]
[Board "78"]

1. e4 {[%clk 0:03:00]}  c5 {[%clk 0:03:00]} 2. b3 {[%clk 0:03:00]}  g6 {[%clk 0:02:51]} 3. Bb2 {[%clk 0:02:59]}  Nf6 {[%clk 0:02:51]} 4. e5 {[%clk 0:03:00]}  Nd5 {[%clk 0:02:49]} 5. Nc3 {[%clk 0:03:00]}  Nxc3 {[%clk 0:02:47]} 6. dxc3 {[%clk 0:03:01]}  Bg7 {[%clk 0:02:46]} 7. Qd5 {[%clk 0:03:01]}  Nc6 {[%clk 0:02:41]} 8. Qxc5 {[%clk 0:02:56]}  Nxe5 {[%clk 0:02:36]} 9. O-O-O {[%clk 0:02:54]}  O-O {[%clk 0:02:32]} 10. h4 {[%clk 0:02:52]}  d6 {[%clk 0:02:29]} 11. Qe3 {[%clk 0:02:50]}  Ng4 {[%clk 0:02:27]} 12. Qe2 {[%clk 0:02:49]}  Qa5 {[%clk 0:02:26]} 13. f3 {[%clk 0:02:49]}  Qxa2 {[%clk 0:02:13]} 14. fxg4 {[%clk 0:02:44]}  Bxg4 {[%clk 0:02:14]} 15. Qxg4 {[%clk 0:02:41]}  Bh6+ {[%clk 0:02:14]} 16. Rd2 {[%clk 0:02:41]}  Bxd2+ {[%clk 0:02:14]} 17. Kxd2 {[%clk 0:02:41]}  Qxb2 {[%clk 0:02:14]} 18. Bd3 {[%clk 0:02:41]}  Rac8 {[%clk 0:02:11]} 19. Ne2 {[%clk 0:02:40]}  h5 {[%clk 0:01:55]} 20. Qe4 {[%clk 0:02:39]}  e5 {[%clk 0:01:49]} 21. g4 {[%clk 0:02:33]}  Qa3 {[%clk 0:01:10]} 22. gxh5 {[%clk 0:02:31]}  Qc5 {[%clk 0:01:10]} 23. hxg6 {[%clk 0:02:27]}  f5 {[%clk 0:01:10]} 24. Qc4+ {[%clk 0:01:58]}  d5 {[%clk 0:01:10]} 25. Qxc5 {[%clk 0:01:57]}  Rxc5 {[%clk 0:01:11]} 26. Ng3 {[%clk 0:01:53]}  e4 {[%clk 0:01:08]} 27. Be2 {[%clk 0:01:52]}  f4 {[%clk 0:01:08]} 28. Nh5 {[%clk 0:01:50]}  f3 {[%clk 0:01:02]} 29. Bf1 {[%clk 0:01:50]}  Rf5 {[%clk 0:00:49]} 30. Ng3 {[%clk 0:01:49]}  Re5 {[%clk 0:00:48]} 31. c4 {[%clk 0:01:45]}  e3+ {[%clk 0:00:39]} 32. Kd3 {[%clk 0:01:44]}  dxc4+ {[%clk 0:00:38]} 33. bxc4 {[%clk 0:01:43]}  b5 {[%clk 0:00:30]} 34. cxb5 {[%clk 0:01:41]}  Rcd5+ {[%clk 0:00:26]} 35. Kc4 {[%clk 0:01:41]}  Rc5+ {[%clk 0:00:24]} 36. Kd4 {[%clk 0:01:42]}  Rcd5+ {[%clk 0:00:21]} 37. Kc4 {[%clk 0:01:42]}  Rc5+ {[%clk 0:00:20]} 38. Kd4 {[%clk 0:01:41]}  Rcd5+ {[%clk 0:00:15]} 39. Kc4 {[%clk 0:01:39]} 1/2-1/2


[Site "https://www.chess.com"]

[Event "Titled Tuesday Blitz November 14 Early 2023"]
[White "Baches Garcia, Guillermo"]
[Black "Krivonosov, Oleg"]
[WhiteFideId "2209764"]
[BlackFideId "11600349"]
[WhiteElo "2531"]
[BlackElo "2725"]
[Result "1-0"]
[Round "4"]
[TimeControl "180+1"]
[Date "2023.11.14"]
[WhiteClock "0:00:13"]
[BlackClock "0:01:33"]
[Board "80"]

1. d4 {[%clk 0:03:00]}  d5 {[%clk 0:02:58]} 2. Nf3 {[%clk 0:03:01]}  e6 {[%clk 0:02:57]} 3. Bg5 {[%clk 0:03:01]}  Be7 {[%clk 0:02:57]} 4. Bxe7 {[%clk 0:03:02]}  Qxe7 {[%clk 0:02:58]} 5. Nbd2 {[%clk 0:03:02]}  Nf6 {[%clk 0:02:57]} 6. e3 {[%clk 0:03:01]}  O-O {[%clk 0:02:58]} 7. Bd3 {[%clk 0:03:01]}  b6 {[%clk 0:02:58]} 8. Qe2 {[%clk 0:03:00]}  Bb7 {[%clk 0:02:57]} 9. O-O {[%clk 0:02:59]}  c5 {[%clk 0:02:57]} 10. c3 {[%clk 0:02:59]}  Nbd7 {[%clk 0:02:55]} 11. Ne5 {[%clk 0:02:57]}  Nxe5 {[%clk 0:02:53]} 12. dxe5 {[%clk 0:02:57]}  Ne4 {[%clk 0:02:53]} 13. Bxe4 {[%clk 0:02:46]}  dxe4 {[%clk 0:02:52]} 14. Qg4 {[%clk 0:02:20]}  Rad8 {[%clk 0:02:46]} 15. Nxe4 {[%clk 0:02:14]}  Bxe4 {[%clk 0:02:47]} 16. Qxe4 {[%clk 0:02:14]}  Rd2 {[%clk 0:02:47]} 17. b3 {[%clk 0:01:55]}  Rfd8 {[%clk 0:02:47]} 18. g3 {[%clk 0:01:55]}  Qd7 {[%clk 0:02:46]} 19. c4 {[%clk 0:01:55]}  g6 {[%clk 0:02:42]} 20. h4 {[%clk 0:01:54]}  h5 {[%clk 0:02:40]} 21. Kg2 {[%clk 0:01:53]}  Qd3 {[%clk 0:02:39]} 22. Qxd3 {[%clk 0:01:51]}  R8xd3 {[%clk 0:02:39]} 23. Kf3 {[%clk 0:01:49]}  Rc3 {[%clk 0:02:36]} 24. Rac1 {[%clk 0:01:32]}  Rxc1 {[%clk 0:02:33]} 25. Rxc1 {[%clk 0:01:32]}  Rxa2 {[%clk 0:02:33]} 26. Rd1 {[%clk 0:01:24]}  Kg7 {[%clk 0:02:32]} 27. e4 {[%clk 0:01:17]}  Ra3 {[%clk 0:02:30]} 28. Rd3 {[%clk 0:01:17]}  a5 {[%clk 0:02:30]} 29. Ke3 {[%clk 0:01:17]}  Kf8 {[%clk 0:02:28]} 30. f4 {[%clk 0:01:13]}  Ke7 {[%clk 0:02:27]} 31. Kd2 {[%clk 0:01:08]}  a4 {[%clk 0:02:18]} 32. bxa4 {[%clk 0:01:02]}  Rxa4 {[%clk 0:02:19]} 33. Rb3 {[%clk 0:00:50]}  Rxc4 {[%clk 0:02:18]} 34. Rxb6 {[%clk 0:00:50]}  Rxe4 {[%clk 0:02:17]} 35. Rb7+ {[%clk 0:00:42]}  Kf8 {[%clk 0:02:16]} 36. Kd3 {[%clk 0:00:32]}  Re1 {[%clk 0:02:14]} 37. Rb8+ {[%clk 0:00:26]}  Kg7 {[%clk 0:02:13]} 38. Rb3 {[%clk 0:00:25]}  Rg1 {[%clk 0:02:09]} 39. Kc4 {[%clk 0:00:23]}  Rc1+ {[%clk 0:02:09]} 40. Rc3 {[%clk 0:00:22]}  Rxc3+ {[%clk 0:01:38]} 41. Kxc3 {[%clk 0:00:23]}  f6 {[%clk 0:01:38]} 42. Kc4 {[%clk 0:00:20]}  fxe5 {[%clk 0:01:38]} 43. fxe5 {[%clk 0:00:20]}  g5 {[%clk 0:01:38]} 44. Kxc5 {[%clk 0:00:19]}  gxh4 {[%clk 0:01:38]} 45. gxh4 {[%clk 0:00:18]}  Kg6 {[%clk 0:01:39]} 46. Kc6 {[%clk 0:00:14]}  Kf5 {[%clk 0:01:36]} 47. Kd6 {[%clk 0:00:14]}  Kg4 {[%clk 0:01:37]} 48. Kxe6 {[%clk 0:00:14]}  Kxh4 {[%clk 0:01:38]} 49. Kd7 {[%clk 0:00:14]}  Kg3 {[%clk 0:01:38]} 50. e6 {[%clk 0:00:15]}  h4 {[%clk 0:01:38]} 51. e7 {[%clk 0:00:15]}  h3 {[%clk 0:01:38]} 52. e8=Q {[%clk 0:00:16]}  Kg2 {[%clk 0:01:39]} 53. Qg6+ {[%clk 0:00:15]}  Kf2 {[%clk 0:01:38]} 54. Qf5+ {[%clk 0:00:15]}  Kg3 {[%clk 0:01:37]} 55. Qg5+ {[%clk 0:00:15]}  Kf3 {[%clk 0:01:36]} 56. Qh4 {[%clk 0:00:12]}  Kg2 {[%clk 0:01:33]} 57. Qg4+ {[%clk 0:00:13]} 1-0


[Site "https://www.chess.com"]

[Event "Titled Tuesday Blitz November 14 Early 2023"]
[White "Srdanovic, Jovana"]
[Black "DopplerCharlotteDeWitte"]
[WhiteFideId "954810"]
[WhiteElo "2516"]
[BlackElo "2716"]
[Result "1/2-1/2"]
[Round "4"]
[TimeControl "180+1"]
[Date "2023.11.14"]
[WhiteClock "0:00:11"]
[BlackClock "0:00:05"]
[Board "84"]

1. d4 {[%clk 0:02:59]}  Nf6 {[%clk 0:03:00]} 2. c4 {[%clk 0:02:58]}  g6 {[%clk 0:02:58]} 3. Nc3 {[%clk 0:02:58]}  d5 {[%clk 0:02:58]} 4. Nf3 {[%clk 0:02:56]}  Bg7 {[%clk 0:02:56]} 5. h4 {[%clk 0:02:55]}  c6 {[%clk 0:02:53]} 6. Bg5 {[%clk 0:02:51]}  Ne4 {[%clk 0:02:41]} 7. e3 {[%clk 0:02:47]}  Bg4 {[%clk 0:02:35]} 8. Be2 {[%clk 0:02:46]}  Qb6 {[%clk 0:02:31]} 9. Qb3 {[%clk 0:02:39]}  Nd7 {[%clk 0:02:18]} 10. c5 {[%clk 0:02:36]}  Qxb3 {[%clk 0:02:09]} 11. axb3 {[%clk 0:02:37]}  Bxf3 {[%clk 0:02:04]} 12. Bxf3 {[%clk 0:02:31]}  Nxg5 {[%clk 0:02:03]} 13. hxg5 {[%clk 0:02:32]}  e5 {[%clk 0:02:04]} 14. Ne2 {[%clk 0:02:30]}  Nf8 {[%clk 0:01:44]} 15. Bg4 {[%clk 0:02:27]}  Ne6 {[%clk 0:01:43]} 16. Bxe6 {[%clk 0:02:11]}  fxe6 {[%clk 0:01:44]} 17. f4 {[%clk 0:02:11]}  exd4 {[%clk 0:01:39]} 18. exd4 {[%clk 0:02:11]}  Kd7 {[%clk 0:01:30]} 19. Kd2 {[%clk 0:02:11]}  h6 {[%clk 0:01:21]} 20. gxh6 {[%clk 0:02:00]}  Bxh6 {[%clk 0:01:22]} 21. Rh3 {[%clk 0:01:53]}  Bg7 {[%clk 0:01:18]} 22. Rah1 {[%clk 0:01:50]}  Rxh3 {[%clk 0:00:57]} 23. Rxh3 {[%clk 0:01:51]}  Ke7 {[%clk 0:00:58]} 24. Ke3 {[%clk 0:01:36]}  b6 {[%clk 0:00:58]} 25. cxb6 {[%clk 0:01:18]}  axb6 {[%clk 0:00:59]} 26. Rh7 {[%clk 0:01:10]}  Kf8 {[%clk 0:00:59]} 27. Rh1 {[%clk 0:00:48]}  Ra2 {[%clk 0:00:44]} 28. Rb1 {[%clk 0:00:47]}  c5 {[%clk 0:00:41]} 29. g4 {[%clk 0:00:41]}  Ke7 {[%clk 0:00:38]} 30. Kd3 {[%clk 0:00:38]}  Kd6 {[%clk 0:00:29]} 31. Nc3 {[%clk 0:00:31]}  Ra5 {[%clk 0:00:28]} 32. Ne2 {[%clk 0:00:29]}  Rb5 {[%clk 0:00:27]} 33. Kc2 {[%clk 0:00:17]}  Rb4 {[%clk 0:00:19]} 34. dxc5+ {[%clk 0:00:17]}  bxc5 {[%clk 0:00:20]} 35. Rh1 {[%clk 0:00:16]}  Re4 {[%clk 0:00:18]} 36. Kd3 {[%clk 0:00:14]}  Bxb2 {[%clk 0:00:18]} 37. Rh6 {[%clk 0:00:13]}  Ke7 {[%clk 0:00:12]} 38. Rxg6 {[%clk 0:00:14]}  Kf7 {[%clk 0:00:12]} 39. Rh6 {[%clk 0:00:14]}  Bg7 {[%clk 0:00:12]} 40. Rh7 {[%clk 0:00:14]}  Rb4 {[%clk 0:00:11]} 41. Kc2 {[%clk 0:00:13]}  c4 {[%clk 0:00:10]} 42. bxc4 {[%clk 0:00:13]}  dxc4 {[%clk 0:00:11]} 43. Nc3 {[%clk 0:00:12]}  Rb3 {[%clk 0:00:09]} 44. Ne4 {[%clk 0:00:12]}  Kg6 {[%clk 0:00:06]} 45. Rh5 {[%clk 0:00:12]}  Re3 {[%clk 0:00:05]} 46. Rg5+ {[%clk 0:00:12]}  Kh6 {[%clk 0:00:05]} 47. Nd6 {[%clk 0:00:12]}  Re2+ {[%clk 0:00:05]} 48. Kd1 {[%clk 0:00:12]}  Rf2 {[%clk 0:00:05]} 49. Nf7+ {[%clk 0:00:12]}  Kh7 {[%clk 0:00:06]} 50. Rh5+ {[%clk 0:00:12]}  Kg6 {[%clk 0:00:05]} 51. Ne5+ {[%clk 0:00:12]}  Bxe5 {[%clk 0:00:06]} 52. Rxe5 {[%clk 0:00:12]}  Kf6 {[%clk 0:00:05]} 53. Re4 {[%clk 0:00:12]}  c3 {[%clk 0:00:05]} 54. Rc4 {[%clk 0:00:12]}  c2+ {[%clk 0:00:05]} 55. Rxc2 {[%clk 0:00:11]}  Rf3 {[%clk 0:00:05]} 56. Rc4 {[%clk 0:00:11]}  Rg3 {[%clk 0:00:05]} 57. g5+ {[%clk 0:00:10]}  Kf5 {[%clk 0:00:05]} 58. Ke2 {[%clk 0:00:11]}  Ra3 {[%clk 0:00:05]} 59. Kf2 {[%clk 0:00:11]}  Rb3 {[%clk 0:00:04]} 60. Ke2 {[%clk 0:00:11]}  Ra3 {[%clk 0:00:04]} 61. Kf2 {[%clk 0:00:10]}  Rb3 {[%clk 0:00:04]} 62. Ke2 {[%clk 0:00:11]}  Ra3 {[%clk 0:00:05]} 1/2-1/2


[Site "https://www.chess.com"]

[Event "Titled Tuesday Blitz November 14 Early 2023"]
[White "Toktomushev, Teimur"]
[Black "Djokic, Mihailo"]
[WhiteFideId "14176726"]
[BlackFideId "976440"]
[WhiteElo "2514"]
[BlackElo "2716"]
[Result "1-0"]
[Round "4"]
[TimeControl "180+1"]
[Date "2023.11.14"]
[WhiteClock "0:00:04"]
[BlackClock "0:00:52"]
[Board "85"]

1. d4 {[%clk 0:02:59]}  Nf6 {[%clk 0:02:59]} 2. c4 {[%clk 0:03:00]}  g6 {[%clk 0:02:59]} 3. Nc3 {[%clk 0:02:59]}  d6 {[%clk 0:02:59]} 4. e4 {[%clk 0:02:59]}  Bg7 {[%clk 0:03:00]} 5. f3 {[%clk 0:03:00]}  O-O {[%clk 0:03:01]} 6. Be3 {[%clk 0:03:00]}  Nc6 {[%clk 0:03:01]} 7. Nge2 {[%clk 0:02:59]}  a6 {[%clk 0:03:02]} 8. Qd2 {[%clk 0:02:54]}  Rb8 {[%clk 0:03:01]} 9. h4 {[%clk 0:02:51]}  h5 {[%clk 0:03:00]} 10. O-O-O {[%clk 0:02:38]}  b5 {[%clk 0:02:59]} 11. Bh6 {[%clk 0:02:34]}  Bxh6 {[%clk 0:02:47]} 12. Qxh6 {[%clk 0:02:35]}  bxc4 {[%clk 0:02:47]} 13. g4 {[%clk 0:02:25]}  e5 {[%clk 0:02:41]} 14. d5 {[%clk 0:01:33]}  Nd4 {[%clk 0:02:37]} 15. Nxd4 {[%clk 0:01:26]}  exd4 {[%clk 0:02:37]} 16. Rxd4 {[%clk 0:01:26]}  Qe7 {[%clk 0:02:34]} 17. gxh5 {[%clk 0:00:39]}  Nxh5 {[%clk 0:02:29]} 18. Bxc4 {[%clk 0:00:27]}  Qe5 {[%clk 0:02:28]} 19. Rd2 {[%clk 0:00:23]}  Rb4 {[%clk 0:02:25]} 20. Bb3 {[%clk 0:00:22]}  Qf4 {[%clk 0:02:12]} 21. Qxf4 {[%clk 0:00:19]}  Nxf4 {[%clk 0:02:13]} 22. Ne2 {[%clk 0:00:05]}  Nh5 {[%clk 0:02:12]} 23. Kb1 {[%clk 0:00:04]}  a5 {[%clk 0:02:10]} 24. Rc1 {[%clk 0:00:04]}  a4 {[%clk 0:02:10]} 25. Bd1 {[%clk 0:00:04]}  Rb7 {[%clk 0:02:08]} 26. Bxa4 {[%clk 0:00:04]}  f5 {[%clk 0:02:08]} 27. Bc6 {[%clk 0:00:03]}  Ra7 {[%clk 0:02:07]} 28. Nd4 {[%clk 0:00:02]}  fxe4 {[%clk 0:02:07]} 29. fxe4 {[%clk 0:00:03]}  Rf4 {[%clk 0:02:06]} 30. Ne6 {[%clk 0:00:03]}  Rxe4 {[%clk 0:02:05]} 31. Be8 {[%clk 0:00:03]}  Bxe6 {[%clk 0:02:01]} 32. Bxg6 {[%clk 0:00:03]}  Rg4 {[%clk 0:01:27]} 33. Bxh5 {[%clk 0:00:02]}  Bf5+ {[%clk 0:01:27]} 34. Ka1 {[%clk 0:00:03]}  Rxh4 {[%clk 0:01:24]} 35. Bf3 {[%clk 0:00:02]}  Rf4 {[%clk 0:01:21]} 36. Bg2 {[%clk 0:00:02]}  Kf7 {[%clk 0:01:17]} 37. a3 {[%clk 0:00:03]}  Ke7 {[%clk 0:01:15]} 38. Bf1 {[%clk 0:00:03]}  Be4 {[%clk 0:01:13]} 39. Re1 {[%clk 0:00:02]}  Kd8 {[%clk 0:01:14]} 40. Bb5 {[%clk 0:00:02]}  Rb7 {[%clk 0:01:10]} 41. Bc6 {[%clk 0:00:02]}  Rb3 {[%clk 0:01:10]} 42. Rde2 {[%clk 0:00:03]}  Ke7 {[%clk 0:00:57]} 43. Rxe4+ {[%clk 0:00:03]}  Rxe4 {[%clk 0:00:58]} 44. Rxe4+ {[%clk 0:00:04]}  Kf6 {[%clk 0:00:58]} 45. a4 {[%clk 0:00:03]}  Rb6 {[%clk 0:00:54]} 46. a5 {[%clk 0:00:03]}  Ra6 {[%clk 0:00:54]} 47. Ra4 {[%clk 0:00:03]}  Ke5 {[%clk 0:00:54]} 48. b4 {[%clk 0:00:04]}  Rxc6 {[%clk 0:00:52]} 49. dxc6 {[%clk 0:00:04]} 1-0


[Site "https://www.chess.com"]